bitfinex/quotes_ETHUSD_20250731
["timestamp","ask_amount","ask_price","bid_price","bid_amount"]
[1753956292562,4.18811105,3866.9,3866.8,1.716]
[1753956293515,4.18811105,3866.9,3866.5,0.1296]
[1753956293717,0.24211105,3866.8,3866.5,0.1296]
[1753956294021,0.24211105,3866.7,3866.5,0.1296]
[1753956294203,3.948,3866.9,3866.5,0.88312345]
[1753956294204,0.24211105,3866.6,3866.5,0.88312345]
[1753956294716,0.24211105,3866.6,3866.5,8.28763236]
[1753956294915,0.24213977,3866.8,3866.6,2.58620241]
[1753956295079,0.24213815,3866.7,3866.5,5.70131399]
[1753956295285,0.24213815,3866.6,3866.5,0.88312345]
[1753956295484,0.24213815,3866.8,3866.5,0.88312345]
[1753956295696,0.24213815,3866.7,3866.5,0.88312345]
[1753956295911,0.002,3866.9,3866.5,8.28763236]
[1753956295912,0.24213815,3866.6,3866.5,8.28763236]
[1753956296095,0.24208573,3866.6,3866.5,8.28760288]
[1753956296294,0.002,3866.9,3866.7,2.5861846]
[1753956296500,0.24207849,3866.8,3866.7,3.4167846]
[1753956296815,0.24207849,3866.8,3866.7,4.4772846]
[1753956297379,0.002,3866.9,3866.7,4.4772846]
[1753956297583,0.24407849,3866.9,3866.8,0.9309]
[1753956297781,0.002,3866.9,3866.8,0.9309]
[1753956298022,0.24407849,3866.9,3866.8,2.19442875]
[1753956298488,0.24407849,3866.9,3866.8,5.54834647]
[1753956298885,0.002,3866.9,3866.8,5.54834647]
[1753956299085,0.002,3866.9,3866.8,2.96222875]
[1753956299312,0.24407849,3866.9,3866.8,5.54834647]
[1753956299986,0.24407849,3866.9,3866.8,2.96222875]
[1753956300615,0.002,3866.9,3866.8,2.96222875]
[1753956300840,0.002,3866.9,3866.8,1.26352875]
[1753956301045,0.002,3866.9,3866.8,1.7478]
[1753956301763,0.002,3866.9,3866.8,4.33391772]
[1753956302122,0.002,3866.9,3866.8,1.7478]
[1753956302428,0.002,3866.9,3866.8,4.33391772]
[1753956302826,0.002,3866.9,3866.8,1.7478]
[1753956303032,0.002,3866.9,3866.8,2.52813969]
[1753956307363,0.002,3866.9,3866.8,5.11425741]
[1753956307867,0.002,3866.9,3866.8,2.52813969]
[1753956308892,0.002,3866.9,3866.8,1.59723969]
[1753956309270,0.002,3866.9,3866.7,4.0736]
[1753956309474,0.4816,3866.9,3866.7,4.0736]
[1753956310160,0.4816,3866.9,3866.7,6.65978041]
[1753956310500,0.002,3866.9,3866.7,6.65878041]
[1753956310684,0.002,3866.9,3866.7,4.0726]
[1753956310880,0.4816,3866.9,3866.7,4.0726]
[1753956311286,1.18882222,3866.8,3866.6,3.943]
[1753956311452,0.4673,3866.8,3866.6,3.943]
[1753956311654,3.13617474,3866.8,3866.4,0.1306]
[1753956311952,3.13617474,3866.8,3866.4,0.001]
[1753956311953,1.31843471,3866.7,3866.4,0.001]
[1753956312178,1.0765,3866.7,3866.4,0.001]
[1753956312378,0.72154167,3866.6,3866.4,0.001]
[1753956312692,0.24194167,3866.5,3866.4,0.001]
[1753956316107,0.4796,3866.5,3866.4,0.001]
[1753956316276,0.72154167,3866.5,3866.4,0.001]
[1753956316469,3.77516004,3866.5,3866.4,0.001]
[1753956316699,1.18884167,3866.5,3866.4,0.001]
[1753956316886,3.77516004,3866.5,3866.4,0.001]
[1753956317086,1.18884167,3866.5,3866.4,0.001]
[1753956318502,1.18909001,3866.5,3866.4,0.001]
[1753956320309,3.77540838,3866.5,3866.4,0.001]
[1753956320711,1.18909001,3866.5,3866.4,0.001]
[1753956323111,3.77540838,3866.5,3866.4,0.001]
[1753956323313,5.12950838,3866.5,3866.4,0.001]
[1753956323517,5.25910838,3866.5,3866.4,0.001]
[1753956323816,5.01691837,3866.5,3866.4,0.001]
[1753956324021,5.25906589,3866.5,3866.4,0.001]
[1753956324188,5.01691837,3866.5,3866.4,0.001]
[1753956324391,4.6216,3866.5,3866.4,0.001]
[1753956325018,4.86370024,3866.5,3866.4,0.001]
[1753956325239,3.98761861,3866.5,3866.4,0.001]
[1753956325404,4.45491861,3866.5,3866.4,0.001]
[1753956328941,0.92170024,3866.5,3866.4,0.001]
[1753956329292,0.92151808,3866.5,3866.4,0.001]
[1753956329824,4.86351808,3866.5,3866.4,0.001]
[1753956330429,7.44983645,3866.5,3866.4,0.001]
[1753956330614,7.92943645,3866.5,3866.4,0.001]
[1753956331044,8.39673645,3866.5,3866.4,0.001]
[1753956336886,9.21243645,3866.5,3866.4,0.001]
[1753956337990,9.45443061,3866.5,3866.4,0.001]
[1753956338278,9.45450599,3866.5,3866.4,0.001]
[1753956340562,12.45450599,3866.5,3866.4,0.001]
[1753956341267,12.21251218,3866.5,3866.4,0.001]
[1753956341465,12.45667632,3866.5,3866.4,0.001]
[1753956341851,12.4568354,3866.5,3866.4,0.001]
[1753956344372,12.45685852,3866.5,3866.4,0.001]
[1753956347088,12.45685852,3866.5,3866.3,0.001]
[1753956347259,8.34401529,3866.4,3866.3,0.001]
[1753956349082,8.34390017,3866.4,3866.3,0.001]
[1753956350192,8.3436057,3866.4,3866.3,0.001]
[1753956351891,6.13651906,3866.2,3866.1,0.04]
[1753956352097,16.32203004,3866.2,3866.1,0.04]
[1753956352268,17.22873004,3866.2,3866.1,0.04]
[1753956353788,12.4105395,3866.2,3866.1,0.04]
[1753956355406,7.0138395,3866.2,3866.1,0.04]
[1753956355585,11.8605395,3866.2,3866.1,0.04]
[1753956355766,12.4105395,3866.2,3866.1,0.04]
[1753956356168,12.41034632,3866.2,3866.1,0.04]
[1753956356367,12.41012584,3866.2,3866.1,0.04]
[1753956357183,12.5376188,3866.2,3866.1,0.04]
[1753956359203,12.08748956,3866.2,3866.1,0.04]
[1753956359905,12.53748956,3866.2,3866.1,0.04]
[1753956361867,8.59748956,3866.2,3866.1,0.04]
[1753956362204,12.53748956,3866.2,3866.1,0.04]
[1753956363110,12.53748956,3866.2,3866.1,0.041]
[1753956363805,12.08748956,3866.2,3866.1,0.041]
[1753956364610,8.14748956,3866.2,3866.1,0.041]
[1753956364838,12.08648956,3866.2,3866.1,0.041]
[1753956365037,7.69078956,3866.2,3866.1,0.041]
[1753956365209,10.13628956,3866.2,3866.1,0.9905]
[1753956365411,10.81588956,3866.2,3866.1,0.9905]
[1753956365618,10.26588956,3866.2,3866.1,0.9905]
[1753956365818,10.26588956,3866.2,3866.1,0.041]
[1753956366230,6.87688956,3866.2,3866.1,0.041]
[1753956366435,10.81588956,3866.2,3866.1,0.5218]
[1753956366715,10.81588956,3866.2,3866.1,0.041]
[1753956369016,11.31248956,3866.2,3866.1,0.041]
[1753956372236,11.75918956,3866.2,3866.1,0.041]
[1753956373619,3.13665287,3866.0,3865.9,0.001]
[1753956373945,10.55893041,3866.0,3865.9,0.001]
[1753956374332,10.68853041,3866.0,3865.9,0.001]
[1753956375347,17.16453041,3866.0,3865.9,0.001]
[1753956376113,17.66113041,3866.0,3865.9,0.001]
[1753956378147,17.16453041,3866.0,3865.9,0.001]
[1753956379053,17.16525131,3866.0,3865.9,0.001]
[1753956379543,17.66185131,3866.0,3865.9,0.001]
[1753956384652,17.16525131,3866.0,3865.9,0.001]
[1753956385954,17.16637269,3866.0,3865.9,0.001]
[1753956387141,17.16638455,3866.0,3865.9,0.001]
[1753956388518,13.22738455,3866.0,3865.9,0.001]
[1753956388721,17.16438455,3866.0,3865.9,0.001]
[1753956391349,17.16436439,3866.0,3865.9,0.001]
[1753956395774,17.16436158,3866.0,3865.9,0.001]
[1753956397182,16.92180997,3866.0,3865.9,0.001]
[1753956397472,17.16437185,3866.0,3865.9,0.001]
[1753956397874,17.63197185,3866.0,3865.9,0.001]
[1753956400878,17.16334533,3866.0,3865.9,0.9549]
[1753956403557,17.16334533,3866.0,3865.9,0.001]
[1753956405963,17.63094533,3866.0,3865.9,0.001]
[1753956406165,17.63087265,3866.0,3865.9,0.001]
[1753956406466,18.06807265,3866.0,3865.9,0.001]
[1753956406666,3.13678669,3865.8,3865.7,0.001]
[1753956406899,7.68640647,3865.8,3865.7,0.001]
[1753956408000,7.68640647,3865.8,3865.7,0.4976]
[1753956408200,7.68640647,3865.8,3865.7,0.001]
[1753956408590,7.68640647,3865.8,3865.7,0.9549]
[1753956409187,7.68633727,3865.8,3865.7,0.9549]
[1753956411377,7.68633727,3865.8,3865.7,0.001]
[1753956411582,8.15393727,3865.8,3865.7,0.001]
[1753956412583,11.59113727,3865.8,3865.7,0.001]
[1753956415067,11.71976019,3865.8,3865.7,0.001]
[1753956417406,6.1368536,3865.7,3865.6,0.001]
[1753956417598,7.52667157,3865.7,3865.6,0.001]
[1753956418104,7.52665046,3865.7,3865.6,0.001]
[1753956421078,11.38915787,3865.7,3865.6,0.001]
[1753956421411,7.52665046,3865.7,3865.6,0.001]
[1753956421718,6.13718824,3865.2,3865.1,0.04]
[1753956421917,17.0331851,3865.2,3865.1,0.04]
[1753956422122,17.1627851,3865.2,3865.1,0.04]
[1753956422324,17.1627851,3865.2,3865.1,0.9939]
[1753956423226,17.16267266,3865.2,3865.1,0.9939]
[1753956423418,13.22867266,3865.2,3865.1,0.04]
[1753956423623,10.22867266,3865.2,3865.1,5.58410741]
[1753956423785,10.22867266,3865.2,3865.1,1.7216]
[1753956424198,9.98628667,3865.2,3865.1,1.7216]
[1753956428041,12.98628667,3865.2,3865.1,1.7216]
[1753956432110,12.98628667,3865.2,3865.1,0.9715]
[1753956432541,12.98628667,3865.2,3865.1,0.04]
[1753956432542,13.47358667,3865.2,3865.1,0.04]
[1753956432746,13.91248667,3865.2,3865.1,0.04]
[1753956433445,14.04269146,3865.2,3865.1,0.04]
[1753956433951,14.04253148,3865.2,3865.1,0.04]
[1753956434148,13.60363148,3865.2,3865.1,0.041]
[1753956434711,14.04253148,3865.2,3865.1,0.041]
[1753956435644,14.28489439,3865.2,3865.1,0.041]
[1753956436077,15.04789439,3865.2,3865.1,0.041]
[1753956436749,15.04787102,3865.2,3865.1,0.041]
[1753956436946,3.13732212,3865.0,3864.9,0.001]
[1753956437123,7.68460046,3865.0,3864.9,0.001]
[1753956437323,8.61080046,3865.0,3864.9,0.001]
[1753956439429,11.92390046,3865.0,3864.9,0.001]
[1753956439635,12.36280046,3865.0,3864.9,0.001]
[1753956441037,12.36280046,3865.0,3864.9,1e-08]
[1753956442554,3.13758991,3864.6,3864.5,0.001]
[1753956442883,14.16286825,3864.6,3864.5,0.001]
[1753956443290,15.08906825,3864.6,3864.5,0.001]
[1753956444052,15.08859115,3864.6,3864.5,0.001]
[1753956444260,14.64969115,3864.6,3864.5,0.001]
[1753956444598,14.64964426,3864.6,3864.5,0.001]
[1753956444888,14.16234426,3864.6,3864.5,0.001]
[1753956446048,13.92024364,3864.6,3864.5,0.001]
[1753956446758,13.92022958,3864.6,3864.5,0.001]
[1753956447346,14.16228324,3864.6,3864.5,0.001]
[1753956447546,14.64958324,3864.6,3864.5,0.001]
[1753956447765,14.7768069,3864.6,3864.5,0.001]
[1753956448053,14.53475324,3864.6,3864.5,0.001]
[1753956448659,17.29271357,3864.6,3864.5,0.001]
[1753956448871,17.73161357,3864.6,3864.5,0.001]
[1753956449580,17.97368564,3864.6,3864.5,0.001]
[1753956449981,18.75838564,3864.6,3864.5,0.001]
[1753956451054,18.51631357,3864.6,3864.5,0.001]
[1753956452247,18.75827776,3864.6,3864.5,0.001]
[1753956452554,18.75827776,3864.6,3864.1,0.041]
[1753956452555,3.13785777,3864.2,3864.1,0.041]
[1753956452767,16.92142196,3864.2,3864.1,0.041]
[1753956453301,17.40452196,3864.2,3864.1,0.041]
[1753956453454,17.83612196,3864.2,3864.1,0.041]
[1753956454489,18.07792781,3864.2,3864.1,0.041]
[1753956454987,18.84842781,3864.2,3864.1,0.041]
[1753956457192,18.84812896,3864.2,3864.1,0.041]
[1753956457556,18.97875531,3864.2,3864.1,0.041]
[1753956457957,6.13832664,3863.5,3863.4,0.001]
[1753956458158,16.92259198,3863.5,3863.4,0.001]
[1753956458391,17.83729198,3863.5,3863.4,0.001]
[1753956461962,18.65359198,3863.5,3863.4,0.001]
[1753956464679,13.80589198,3863.5,3863.4,0.001]
[1753956464877,17.11556078,3863.5,3863.4,0.001]
[1753956465572,17.11528512,3863.5,3863.4,0.001]
[1753956466418,17.11528512,3863.5,3863.4,0.9061]
[1753956467408,7.53419202,3863.5,3863.4,0.9061]
[1753956467590,11.46719202,3863.5,3863.4,1.6824]
[1753956467789,14.46719202,3863.5,3863.4,1.6824]
[1753956467987,17.05551866,3863.5,3863.4,1.6824]
[1753956468206,7.85398968,3863.5,3863.4,1.6824]
[1753956469406,3.92098968,3863.5,3863.4,1.6824]
[1753956469805,10.44231632,3863.5,3863.4,1.6824]
[1753956471617,7.85398968,3863.5,3863.4,1.6824]
[1753956471820,7.30398968,3863.5,3863.4,1.6824]
[1753956471998,7.17438968,3863.5,3863.4,1.85464]
[1753956472199,7.72438968,3863.5,3863.4,1.85464]
[1753956472984,0.79138968,3863.5,3863.4,4.44303364]
[1753956473724,0.79138968,3863.5,3863.4,1.85464]
[1753956473893,0.79138968,3863.5,3863.4,4.44303364]
[1753956474098,0.79175925,3863.5,3863.4,1.85464]
[1753956475526,0.79191061,3863.5,3863.4,1.85464]
[1753956476388,0.79191061,3863.5,3863.4,0.7773]
[1753956476587,0.79191061,3863.5,3863.4,1.6824]
[1753956476923,0.79191061,3863.5,3863.4,0.7773]
[1753956477128,0.79192839,3863.5,3863.4,1.6824]
[1753956477503,0.79192839,3863.5,3863.4,4.27079364]
[1753956477706,0.79192839,3863.5,3863.4,2.38529857]
[1753956479035,0.79192839,3863.5,3863.4,4.97369221]
[1753956479206,0.79192839,3863.5,3863.4,2.38529857]
[1753956479704,0.79192839,3863.5,3863.4,4.97369221]
[1753956479902,0.24192839,3863.5,3863.4,4.97369221]
[1753956480087,0.24192839,3863.5,3863.4,5.10329221]
[1753956480513,0.24195726,3863.9,3863.8,2.58812567]
[1753956480720,0.24195708,3863.9,3863.8,3.87676259]
[1753956481227,0.79195708,3863.9,3863.8,4.78186259]
[1753956481793,0.79195708,3863.9,3863.8,1.2466]
[1753956482021,0.79195708,3863.9,3863.8,1.6761]
[1753956483738,0.79184686,3863.9,3863.8,1.6761]
[1753956484111,0.79184686,3863.9,3863.8,0.771]
[1753956485046,0.79180763,3863.9,3863.8,0.771]
[1753956485554,0.79180763,3863.9,3863.6,0.8822]
[1753956485860,6.91232664,3863.5,3863.4,0.001]
[1753956486006,3.13852764,3863.2,3862.2,1.2163]
[1753956486211,17.18064521,3863.2,3862.2,1.2163]
[1753956486432,18.49460312,3863.2,3862.2,1.2163]
[1753956486840,19.32380312,3863.2,3862.1,0.04]
[1753956487040,20.06069427,3863.2,3862.1,0.04]
[1753956487425,20.06047987,3863.2,3862.1,0.04]
[1753956489151,20.06043162,3863.2,3862.1,0.04]
[1753956491164,19.32354047,3863.2,3862.1,0.04]
[1753956491954,19.32354047,3863.2,3862.2,0.4637]
[1753956492253,19.32354047,3863.2,3862.7,0.001]
[1753956492833,15.37554047,3863.2,3862.7,0.001]
[1753956493035,19.32154047,3863.2,3862.7,0.001]
[1753956494760,19.4514182,3863.2,3862.7,0.001]
[1753956495952,15.5054182,3863.2,3862.7,0.001]
[1753956496148,19.4514182,3863.2,3862.7,0.001]
[1753956496457,15.0463182,3863.2,3862.7,0.9107]
[1753956496656,17.30726029,3863.2,3862.7,0.447]
[1753956496867,17.30726029,3863.2,3862.8,0.4637]
[1753956497072,17.77996029,3863.2,3862.8,0.4637]
[1753956497284,17.77996029,3863.2,3862.7,0.447]
[1753956497652,17.77996029,3863.2,3862.7,0.9107]
[1753956501059,17.77996029,3863.2,3863.1,0.041]
[1753956501550,18.23906029,3863.2,3863.1,0.041]
[1753956504489,18.23864124,3863.2,3863.1,0.041]
[1753956507992,17.77954124,3863.2,3863.1,0.041]
[1753956508184,18.23864124,3863.2,3863.1,0.041]
[1753956508563,17.7793632,3863.2,3863.1,0.041]
[1753956508761,18.2384632,3863.2,3863.1,0.041]
[1753956509207,17.7793632,3863.2,3863.1,0.041]
[1753956510195,13.8343632,3863.2,3863.1,0.041]
[1753956510397,17.3016632,3863.2,3863.1,0.041]
[1753956511369,16.7506632,3863.2,3863.1,0.9507]
[1753956511589,10.8196632,3863.2,3863.1,0.9507]
[1753956511906,7.68113556,3863.2,3863.1,0.9507]
[1753956512069,5.23313556,3863.2,3863.1,1.12252]
[1753956512461,5.10392808,3863.2,3863.1,1.12252]
[1753956512804,4.86226404,3863.2,3863.1,1.12252]
[1753956513162,4.6206,3863.2,3863.1,1.12252]
[1753956513881,4.6206,3863.2,3863.1,0.041]
[1753956514086,4.6206,3863.2,3863.1,0.9781]
[1753956514257,0.6796,3863.2,3863.1,0.9781]
[1753956514462,0.92159191,3863.2,3863.1,0.9781]
[1753956514774,0.92158272,3863.2,3863.1,0.9781]
[1753956515000,1.16356544,3863.2,3863.1,1.41153787]
[1753956515526,1.16378846,3863.2,3863.1,1.41153787]
[1753956515729,1.03418846,3863.2,3863.1,1.41153787]
[1753956517130,0.48418846,3863.2,3863.1,0.9781]
[1753956517832,0.48418846,3863.2,3863.1,4.52939465]
[1753956518413,0.24220574,3863.2,3863.1,4.52939465]
[1753956519430,0.002,3863.8,3863.7,3.41939266]
[1753956519728,0.24395648,3863.8,3863.7,0.8312]
[1753956519929,0.24395648,3863.8,3863.7,4.02017501]
[1753956520102,0.24395648,3863.8,3863.7,4.95727501]
[1753956521296,0.002,3863.8,3863.7,4.95727501]
[1753956521724,0.24395648,3863.8,3863.7,9.78618972]
[1753956522312,0.002,3863.8,3863.7,9.78618972]
[1753956525452,0.002,3863.8,3863.7,9.91578972]
[1753956532730,0.002,3863.8,3863.7,13.85178972]
[1753956550264,0.002,3863.8,3863.7,12.91468972]
[1753956552693,0.002,3863.8,3863.7,4.14997501]
[1753956552847,0.9031,3863.8,3863.7,6.64879266]
[1753956553684,0.9031,3863.8,3863.7,2.71779266]
[1753956553886,0.9031,3863.8,3863.7,6.64879266]
[1753956557295,0.9031,3863.8,3863.7,2.71779266]
[1753956557478,0.9031,3863.8,3863.7,6.64879266]
[1753956558491,0.9031,3863.8,3863.7,2.71779266]
[1753956558703,1.14545481,3863.8,3863.7,6.64879266]
[1753956559101,1.14545481,3863.8,3863.7,2.71779266]
[1753956559405,0.9031,3863.8,3863.7,6.64979266]
[1753956559692,1.14542979,3863.8,3863.7,6.64979266]
[1753956559991,1.1454302,3863.8,3863.7,6.64979266]
[1753956560189,0.4644,3863.8,3863.7,6.64979266]
[1753956560595,0.002,3863.8,3863.7,6.64979266]
[1753956561297,0.002,3863.8,3863.7,8.10267051]
[1753956561699,0.002,3863.8,3863.7,8.56367051]
[1753956562293,0.002,3863.8,3863.7,8.10267051]
[1753956562501,0.002,3863.8,3863.7,6.64979266]
[1753956565285,0.002,3863.8,3863.7,7.11079266]
[1753956565489,0.002,3863.8,3863.7,6.64979266]
[1753956567604,0.002,3863.8,3863.7,7.11079266]
[1753956567816,0.002,3863.8,3863.7,6.64979266]
[1753956569332,0.002,3863.8,3863.7,8.22907051]
[1753956569491,0.002,3863.8,3863.7,9.12187051]
[1753956570988,0.002,3863.8,3863.7,8.22907051]
[1753956573322,0.002,3863.8,3863.7,9.17287051]
[1753956580520,0.4691,3863.8,3863.7,4.16747051]
[1753956580721,0.9367,3863.8,3863.7,6.51919266]
[1753956586217,0.4691,3863.8,3863.7,6.51919266]
[1753956587323,0.9367,3863.8,3863.7,6.51919266]
[1753956590043,0.4691,3863.8,3863.7,6.51919266]
[1753956590539,0.4691,3863.8,3863.7,6.64879266]
[1753956591111,0.9367,3863.8,3863.7,6.64879266]
[1753956594043,0.4691,3863.8,3863.7,6.64879266]
[1753956594345,0.002,3863.8,3863.7,6.64879266]
[1753956594645,0.002,3863.8,3863.7,8.51639897]
[1753956595532,0.002,3863.8,3863.7,7.57259897]
[1753956596242,0.002,3863.8,3863.7,8.51639897]
[1753956596629,0.002,3863.8,3863.7,7.57259897]
[1753956598920,0.002,3863.8,3863.7,8.51639897]
[1753956599252,0.002,3863.8,3863.7,7.57259897]
[1753956600820,0.002,3863.8,3863.7,8.51639897]
[1753956601964,1e-08,3864.2,3864.0,2.58799171]
[1753956602250,1e-08,3864.2,3864.1,12.67454557]
[1753956602458,1e-08,3864.2,3864.1,13.61834557]
[1753956602660,0.002,3864.5,3864.4,2.58772383]
[1753956602872,0.002,3864.6,3864.4,2.58772383]
[1753956602873,0.002,3864.6,3864.5,7.41637158]
[1753956603026,0.002,3864.6,3864.5,9.67042152]
[1753956603229,0.002,3864.6,3864.5,10.61632152]
[1753956603436,0.002,3864.6,3864.5,11.38902152]
[1753956603858,1e-08,3864.6,3864.5,14.38902152]
[1753956606669,1e-08,3864.6,3864.5,18.63902152]
[1753956609038,1e-08,3864.6,3864.5,22.56902152]
[1753956610873,1e-08,3864.6,3864.5,18.63902152]
[1753956611050,1e-08,3864.6,3864.5,22.56802152]
[1753956612167,1e-08,3864.6,3864.5,22.69762152]
[1753956616801,0.46120001,3864.6,3864.5,17.82272152]
[1753956617104,0.002,3865.0,3864.9,2.58738906]
[1753956617283,0.002,3865.0,3864.9,7.29262702]
[1753956617485,0.002,3865.0,3864.9,8.36812702]
[1753956618400,0.002,3865.0,3864.9,9.19932702]
[1753956618595,0.002,3865.0,3864.9,12.19932702]
[1753956621958,0.8979,3865.0,3864.9,6.49322702]
[1753956622164,0.8979,3865.0,3864.9,7.42222702]
[1753956623932,0.8979,3865.0,3864.9,3.49322702]
[1753956624102,0.8979,3865.0,3864.9,7.42222702]
[1753956625898,0.8979,3865.0,3864.9,6.64598906]
[1753956631234,0.8979,3865.0,3864.9,0.1296]
[1753956631235,1.6914,3865.0,3864.9,0.1296]
[1753956631503,1.6914,3865.0,3864.9,4.0586]
[1753956631811,4.27872212,3865.0,3864.9,0.1296]
[1753956632015,1.93322963,3865.0,3864.9,0.1296]
[1753956632718,1.93322963,3865.0,3864.8,3.929]
[1753956632719,0.7623,3864.9,3864.8,3.929]
[1753956632916,1.00412963,3864.9,3864.8,3.929]
[1753956633253,1.90002963,3864.9,3864.8,3.929]
[1753956634434,1.90002963,3864.9,3864.8,6.64605601]
[1753956634435,1.00412963,3864.9,3864.8,6.64605601]
[1753956634640,1.47372963,3864.9,3864.8,6.64605601]
[1753956636054,1.93902963,3864.9,3864.8,6.64605601]
[1753956636262,1.9390498,3864.9,3864.8,6.64605601]
[1753956636650,1.6972,3864.9,3864.8,6.64605601]
[1753956646441,2.10910112,3864.9,3864.8,3.929]
[1753956646654,2.65910112,3864.9,3864.8,3.929]
[1753956646843,5.37609018,3864.9,3864.8,3.929]
[1753956647055,1.3409,3864.8,3864.5,0.001]
[1753956647366,8.05968112,3864.7,3864.6,3.929]
[1753956647670,8.99458112,3864.7,3864.6,3.929]
[1753956654055,8.99458112,3864.7,3864.6,3.93]
[1753956655282,8.99458126,3864.7,3864.6,3.93]
[1753956656481,8.7528,3864.7,3864.6,3.93]
[1753956656675,8.99461213,3864.7,3864.6,3.93]
[1753956657056,8.99461197,3864.7,3864.6,3.93]
[1753956659983,8.99477954,3864.7,3864.6,3.93]
[1753956664790,7.50987954,3864.7,3864.6,6.51758991]
[1753956665091,6.71897954,3864.7,3864.6,6.51758991]
[1753956665297,7.20577954,3864.7,3864.6,3.93]
[1753956667505,6.71897954,3864.7,3864.6,6.51758991]
[1753956668704,6.71897954,3864.7,3864.6,3.93]
[1753956669704,7.20577954,3864.7,3864.6,3.93]
[1753956670709,7.65957954,3864.7,3864.6,0.001]
[1753956670866,7.65957954,3864.7,3864.6,3.93]
[1753956672507,7.65957954,3864.7,3864.6,0.001]
[1753956672695,7.65957954,3864.7,3864.6,3.93]
[1753956672907,7.6597334,3864.7,3864.6,3.93]
[1753956674024,8.9947334,3864.7,3864.6,3.93]
[1753956676590,8.0541334,3864.7,3864.6,3.93]
[1753956677416,7.5041334,3864.7,3864.6,3.93]
[1753956677620,6.7191334,3864.7,3864.6,7.45148991]
[1753956679429,6.71931796,3864.7,3864.6,4.8639]
[1753956679606,6.71931796,3864.7,3864.6,3.93]
[1753956680327,6.71931796,3864.7,3864.6,6.51758991]
[1753956680838,6.71931796,3864.7,3864.6,3.93]
[1753956681738,6.71931796,3864.7,3864.6,6.99968991]
[1753956681945,6.71931796,3864.7,3864.6,7.45148991]
[1753956682610,6.71931796,3864.7,3864.6,4.8639]
[1753956682936,6.71931796,3864.7,3864.6,3.93]
[1753956683728,7.20611796,3864.7,3864.6,3.93]
[1753956684746,8.48731796,3864.7,3864.6,3.93]
[1753956684908,9.03730482,3864.7,3864.6,0.001]
[1753956685112,9.16690482,3864.7,3864.6,3.929]
[1753956685732,11.75442778,3864.7,3864.6,3.929]
[1753956685912,11.75442778,3864.7,3864.6,0.001]
[1753956691751,11.88335651,3864.7,3864.6,0.001]
[1753956692325,9.16690482,3864.7,3864.6,0.001]
[1753956692526,11.75442778,3864.7,3864.6,0.001]
[1753956695626,11.75433616,3864.7,3864.6,0.001]
[1753956695856,9.1668132,3864.7,3864.6,0.001]
[1753956696227,11.75433616,3864.7,3864.6,0.001]
[1753956696661,11.75434095,3864.7,3864.6,0.001]
[1753956697165,11.75634095,3864.7,3864.6,0.001]
[1753956697959,11.51412296,3864.7,3864.6,0.001]
[1753956698141,11.75637952,3864.7,3864.6,0.001]
[1753956698663,14.75637952,3864.7,3864.6,0.001]
[1753956699165,18.68437952,3864.7,3864.6,0.001]
[1753956702687,17.74377952,3864.7,3864.6,0.001]
[1753956703185,18.19517952,3864.7,3864.6,0.001]
[1753956705587,18.63707952,3864.7,3864.6,0.001]
[1753956708482,18.87919928,3864.7,3864.6,0.001]
[1753956709250,18.87919649,3864.7,3864.6,0.001]
[1753956709784,18.63707952,3864.7,3864.6,0.001]
[1753956709989,18.879057,3864.7,3864.6,0.001]
[1753956712898,18.8790508,3864.7,3864.6,0.001]
[1753956713704,6.91568991,3864.6,3864.5,0.001]
[1753956714001,8.29321775,3864.6,3864.5,0.001]
[1753956715459,8.29306125,3864.6,3864.5,0.001]
[1753956715769,8.29294177,3864.6,3864.5,0.001]
[1753956718766,8.2928222,3864.6,3864.5,0.001]
[1753956721125,8.29265335,3864.6,3864.5,0.001]
[1753956724912,7.39935335,3864.6,3864.5,0.001]
[1753956725071,11.32732393,3864.6,3864.5,0.001]
[1753956725269,11.45692393,3864.6,3864.5,0.9655]
[1753956725496,11.45692393,3864.6,3864.5,0.001]
[1753956726001,11.91862393,3864.6,3864.5,0.001]
[1753956726199,11.45692393,3864.6,3864.5,0.001]
[1753956730703,11.91862393,3864.6,3864.5,0.001]
[1753956731272,5.5877908,3864.3,3864.2,0.467]
[1753956731578,16.36416846,3864.3,3864.2,0.9655]
[1753956732076,16.36425968,3864.3,3864.2,0.9655]
[1753956732613,16.36427204,3864.3,3864.2,0.9655]
[1753956732820,10.39948124,3864.3,3864.2,0.9655]
[1753956732970,14.32648124,3864.3,3864.2,0.9655]
[1753956735303,16.91427204,3864.3,3864.2,0.9655]
[1753956735907,16.91427204,3864.3,3864.2,0.001]
[1753956736806,17.82397204,3864.3,3864.2,0.001]
[1753956737209,17.37597204,3864.3,3864.2,0.001]
[1753956738009,17.61795745,3864.3,3864.2,0.001]
[1753956738609,17.74858462,3864.3,3864.2,0.001]
[1753956739107,0.55,3864.0,3863.9,0.4505]
[1753956739310,3.79188124,3864.0,3863.9,0.4505]
[1753956739614,3.92148124,3864.0,3863.9,0.9165]
[1753956741408,3.50971232,3864.0,3863.9,0.466]
[1753956741602,3.50971232,3864.0,3863.8,0.001]
[1753956741809,7.27012061,3863.9,3863.8,0.9655]
[1753956742730,9.8581793,3863.9,3863.8,0.001]
[1753956742906,12.8581793,3863.9,3863.8,0.001]
[1753956743105,13.7678793,3863.9,3863.8,0.001]
[1753956743311,17.9370416,3863.9,3863.8,0.001]
[1753956745302,17.4890416,3863.9,3863.8,0.001]
[1753956745633,17.0273416,3863.9,3863.8,0.001]
[1753956746537,16.7851793,3863.9,3863.8,0.001]
[1753956746745,14.19712061,3863.9,3863.8,0.001]
[1753956746940,14.19712061,3863.9,3863.8,0.9655]
[1753956747139,14.32672061,3863.9,3863.8,0.9655]
[1753956749134,10.39972061,3863.9,3863.8,0.9655]